bitfinex-derivatives/quotes_SOLF0:USTF0_20240930
["timestamp","ask_amount","ask_price","bid_price","bid_amount"]
[1727687788452,79.05232748,155.78,155.75,7.88]
[1727687788753,79.05232748,155.78,155.74,7.88]
[1727687789143,7.88,155.79,155.74,7.88]
[1727687789453,7.88,155.79,155.73,3.2101]
[1727687789454,9.1165,155.8,155.75,7.88]
[1727687789654,7.88,155.78,155.74,7.88]
[1727687789851,80.26089617,155.8,155.75,7.88]
[1727687790051,80.26089617,155.8,155.77,7.88]
[1727687790250,79.02439617,155.8,155.77,7.88]
[1727687790446,0.12502,155.81,155.79,7.88]
[1727687790663,0.12502,155.81,155.8,7.88]
[1727687791042,0.12502,155.87,155.8,7.88]
[1727687791249,0.12502,155.87,155.78,3.2660147]
[1727687791448,0.12502,155.87,155.84,7.88]
[1727687791850,0.12502,155.87,155.83,7.88]
[1727687792056,0.12502,155.87,155.84,7.88]
[1727687792459,0.12502,155.87,155.84,11.0878]
[1727687792662,0.12502,155.87,155.86,7.88]
[1727687793250,18.02335464,155.93,155.86,7.88]
[1727687793452,18.02335464,155.93,155.89,7.88]
[1727687793753,18.02335464,155.93,155.81,0.12502]
[1727687793754,10.14335464,155.93,155.86,12.33]
[1727687793949,10.14335464,155.93,155.88,12.33]
[1727687794360,10.14335464,155.93,155.83,0.1265]
[1727687794658,10.14335464,155.93,155.84,12.33]
[1727687794859,13.34945464,155.93,155.83,0.1265]
[1727687795059,13.34945464,155.93,155.83,12.4565]
[1727687795060,10.14335464,155.93,155.83,12.4565]
[1727687795559,10.14335464,155.93,155.87,3.2072]
[1727687795945,10.14335464,155.93,155.85,12.33]
[1727687796154,10.14335464,155.93,155.89,3.2068]
[1727687796352,10.14335464,155.93,155.88,12.33]
[1727687797155,10.14335464,155.93,155.9,12.33]
[1727687797753,10.14335464,155.93,155.83,0.1265]
[1727687797754,10.14335464,155.93,155.92,15.5362]
[1727687798853,10.14335464,155.93,155.92,12.33]
[1727687799062,10.14335464,155.93,155.84,1.2505]
[1727687799063,10.14335464,155.93,155.88,12.33]
[1727687799970,10.14335464,155.93,155.89,3.2068]
[1727687800455,10.14335464,155.93,155.88,15.537]
[1727687801165,10.14335464,155.93,155.88,12.33]
[1727687801364,10.14335464,155.93,155.89,3.2068]
[1727687801765,10.14335464,155.93,155.85,12.33]
[1727687802069,10.14335464,155.93,155.84,1.2505]
[1727687802070,12.33,155.92,155.83,12.33]
[1727687802361,3.2066,155.91,155.83,12.33]
[1727687802563,12.33,155.92,155.86,3.2073]
[1727687803154,15.5363,155.92,155.86,3.2073]
[1727687803362,11.41325464,155.93,155.87,3.2072]
[1727687804165,14.61935464,155.93,155.88,3.2071]
[1727687804558,11.41325464,155.93,155.83,12.33]
[1727687804861,12.33,155.9,155.81,0.12502]
[1727687805266,15.5373,155.87,155.81,3.33332]
[1727687805461,1.3136,155.86,155.81,3.33332]
[1727687806657,4.5373,155.89,155.84,3.2077]
[1727687806956,4.5373,155.89,155.81,0.12502]
[1727687807163,1.3304,155.89,155.81,0.12502]
[1727687807361,1.3304,155.89,155.84,3.2077]
[1727687807565,1.3304,155.89,155.81,12.45502]
[1727687807861,3.2075,155.86,155.81,3.33352]
[1727687808067,3.2075,155.86,155.81,0.12502]
[1727687808266,3.2075,155.86,155.77,12.33]
[1727687808267,12.33,155.83,155.75,0.12502]
[1727687808469,12.33,155.83,155.75,3.33462]
[1727687808669,12.33,155.8,155.75,0.12502]
[1727687808871,3.2093,155.78,155.75,0.12502]
[1727687809073,12.33,155.8,155.75,0.12502]
[1727687810764,3.2093,155.78,155.75,0.12502]
[1727687810963,12.33,155.8,155.75,0.12502]
[1727687811574,3.2089,155.8,155.75,0.12502]
[1727687811774,1.2792,155.82,155.75,0.12502]
[1727687811974,3.2087,155.8,155.75,0.12502]
[1727687812271,1.2792,155.82,155.75,0.12502]
[1727687812572,19.74,155.81,155.75,0.12502]
[1727687812975,20.74,155.81,155.75,0.12502]
[1727687813171,3.2094,155.77,155.7,3.2108]
[1727687813473,20.74,155.81,155.69,0.12502]
[1727687813474,22.91627384,155.78,155.69,0.12502]
[1727687813663,80.39224801,155.76,155.69,0.12502]
[1727687813864,1.3402,155.75,155.69,0.12502]
[1727687814568,3.2102,155.73,155.69,0.12502]
[1727687814967,21.0802,155.75,155.69,0.12502]
[1727687815164,21.0802,155.75,155.63,0.12502]
[1727687815465,1.46522,155.75,155.63,0.12502]
[1727687815667,4.21,155.74,155.63,3.33712]
[1727687815968,1.0,155.74,155.63,0.12502]
[1727687816183,3.2103,155.73,155.64,3.212]
[1727687816469,3.2103,155.73,155.63,0.12502]
[1727687816470,19.74,155.73,155.63,0.12502]
[1727687816871,22.9503,155.73,155.64,3.2119]
[1727687817271,19.74,155.73,155.64,3.2119]
[1727687817470,79.07731969,155.72,155.63,0.12502]
[1727687817666,79.07731969,155.72,155.63,19.86502]
[1727687818172,79.07731969,155.72,155.63,0.12502]
[1727687818876,79.07731969,155.72,155.68,3.2111]
[1727687819175,79.07731969,155.72,155.63,19.86502]
[1727687819365,79.07731969,155.72,155.64,1.3348]
[1727687819775,79.07731969,155.72,155.69,3.2109]
[1727687819978,501.2271,155.73,155.64,1.3348]
[1727687820271,500.0,155.73,155.66,19.74]
[1727687820474,500.0,155.73,155.69,19.74]
[1727687821276,500.0,155.73,155.69,3.2108]
[1727687821469,500.0,155.73,155.66,19.74]
[1727687821875,500.0,155.73,155.64,2.5824]
[1727687821876,500.0,155.73,155.72,3.2104]
[1727687823466,427.35478001,155.73,155.72,22.9504]
[1727687823670,411.81478001,155.73,155.72,22.9504]
[1727687823877,405.30028001,155.73,155.72,22.9504]
[1727687824480,387.48028001,155.73,155.72,22.9504]
[1727687825574,357.23028001,155.73,155.72,22.9504]
[1727687825971,357.23028001,155.73,155.72,3.2104]
[1727687826177,315.21028001,155.73,155.72,3.2104]
[1727687826776,299.67028001,155.73,155.72,3.2104]
[1727687827368,281.85028001,155.73,155.72,3.2104]
[1727687827576,251.60028001,155.73,155.72,3.2104]
[1727687827877,243.48758001,155.73,155.72,3.2104]
[1727687828479,209.08768001,155.73,155.72,3.2104]
[1727687828884,205.49818001,155.73,155.72,3.2104]
[1727687829074,189.09118001,155.73,155.72,3.2104]
[1727687829468,154.10828001,155.73,155.72,3.2104]
[1727687829670,115.52345943,155.73,155.72,3.2104]
[1727687829870,105.26395943,155.73,155.72,3.2104]
[1727687830083,26.19535943,155.73,155.72,3.2104]
[1727687830270,0.73795943,155.73,155.72,343.2104]
[1727687830476,0.12502,155.75,155.74,3.2099]
[1727687830673,1.2376,155.91,155.74,3.2099]
[1727687830674,1.2376,155.91,155.74,39.48]
[1727687830886,1.2376,155.91,155.8,39.48]
[1727687831077,11.50705464,155.93,155.86,22.9475]
[1727687831278,11.50705464,155.93,155.89,19.74]
[1727687831680,11.50705464,155.93,155.9,3.2066]
[1727687831884,11.50705464,155.93,155.89,19.74]
[1727687832083,11.50705464,155.93,155.92,3.2062]
[1727687832284,5.56335464,155.93,155.92,22.9462]
[1727687832680,15.25887494,155.96,155.92,19.74]
[1727687832881,15.25887494,155.96,155.93,3.206]
[1727687833890,15.25887494,155.96,155.92,19.74]
[1727687834189,15.25887494,155.96,155.89,22.90998444]
[1727687834482,15.25887494,155.96,155.89,19.74]
[1727687834883,15.25887494,155.96,155.89,22.95840808]
[1727687835280,15.25887494,155.96,155.93,3.2058]
[1727687835587,21.48768773,155.97,155.95,19.74]
[1727687835890,12.38342783,155.98,155.97,3.2052]
[1727687836183,16.78979687,155.99,155.97,19.74]
[1727687836593,16.78979687,155.99,155.98,3.205]
[1727687837285,15.70349406,156.0,155.99,3.2048]
[1727687837691,13.13314549,156.01,155.97,19.74]
[1727687837890,13.13314549,156.01,156.0,3.2046]
[1727687838188,112.63450468,156.02,156.0,19.74]
[1727687838383,76.76450468,156.02,156.0,19.74]
[1727687838584,76.76450468,156.02,156.01,3.2044]
[1727687839189,53.32450468,156.02,156.01,3.2044]
[1727687839909,33.33450469,156.02,156.01,3.2044]
[1727687840092,17.78450469,156.02,156.01,26.17132086]
[1727687840291,17.78450469,156.02,156.01,22.9444]
[1727687840592,1.01450469,156.02,156.01,22.9444]
[1727687840790,1.01450469,156.02,156.01,26.09088019]
[1727687841194,10.57619442,156.03,156.02,3.2042]
[1727687841383,109.17815994,156.05,156.02,19.74]
[1727687841585,109.17815994,156.05,156.03,69.28]
[1727687841896,101.28815994,156.05,156.04,3.2038]
[1727687843300,68.94815994,156.05,156.04,3.2038]
[1727687843500,52.17815994,156.05,156.04,3.2038]
[1727687843688,52.17815994,156.05,155.99,0.12502]
[1727687844000,53.47955994,156.05,155.99,0.12502]
[1727687844199,1.2506,156.04,156.0,3.2045]
[1727687844402,1.2506,156.04,155.99,0.12502]
[1727687844899,1.2506,156.04,155.99,3.32962]
[1727687845796,1.2506,156.04,155.99,0.12502]
[1727687846289,1.2506,156.04,156.02,3.2042]
[1727687846493,1.2506,156.04,155.99,0.12502]
[1727687849302,1.2506,156.04,156.0,3.2044]
[1727687851199,1.2506,156.04,155.99,0.12502]
[1727687851503,1.2506,156.04,156.01,3.2043]
[1727687851900,1.2506,156.04,156.02,3.2041]
[1727687852798,1.2506,156.04,155.99,0.12502]
[1727687852999,1.2506,156.04,156.03,3.204]
[1727687853218,1.2506,156.04,155.99,0.12502]
[1727687853398,1.2506,156.04,156.02,3.2041]
[1727687854006,1.2506,156.04,156.03,3.204]
[1727687855403,53.47955994,156.05,156.03,3.204]
[1727687855911,53.47955994,156.05,155.99,0.12502]
[1727687856110,53.47955994,156.05,155.99,19.86502]
[1727687856416,52.17815994,156.05,156.04,3.2038]
[1727687857201,2.59908628,156.06,156.04,19.74]
[1727687857517,2.59908628,156.06,156.05,3.2036]
[1727687857713,2.83460544,156.08,156.04,19.74]
[1727687858014,1.23469951,156.09,156.08,3.203]
[1727687858717,1.23469951,156.09,156.08,6.41481358]
[1727687859012,1.23469951,156.09,156.08,3.203]
[1727687859508,1.23469951,156.09,156.05,19.74]
[1727687859811,1.23469951,156.09,156.05,22.93675871]
[1727687860114,1.23469951,156.09,156.03,69.22]
[1727687860311,1.358,156.08,156.03,69.22]
[1727687860506,1.358,156.08,156.05,3.2034]
[1727687860811,1.358,156.08,156.03,72.38857086]
[1727687861414,1.358,156.08,156.04,3.2037]
[1727687861615,1.358,156.08,156.03,72.38857086]
[1727687863518,1.358,156.08,156.06,3.2032]
[1727687865118,1.358,156.08,156.07,3.2032]
[1727687865815,1.23469951,156.09,156.05,19.74]
[1727687866115,1.38396923,156.11,156.09,3.2027]
[1727687866621,1.38396923,156.11,156.07,19.74]
[1727687866820,1.87375446,156.12,156.1,19.74]
[1727687867020,2.97083722,156.13,156.1,19.74]
[1727687868120,2.97083722,156.13,156.12,3.2021]
[1727687869817,1.68603722,156.13,156.12,3.2021]
[1727687870216,1.68603722,156.13,156.07,19.74]
[1727687870416,1.68603722,156.13,156.05,0.12502]
[1727687871127,1.68603722,156.13,156.05,19.86502]
[1727687871528,1.68603722,156.13,156.1,3.2025]
[1727687871826,1.68603722,156.13,156.07,19.74]
[1727687872022,1.68603722,156.13,156.11,3.2022]
[1727687874031,1.68603722,156.13,156.05,0.12502]
[1727687874727,1.68603722,156.13,156.08,3.2028]
[1727687875117,1.68603722,156.13,156.1,3.2025]
[1727687876130,1.68603722,156.13,156.07,19.74]
[1727687876331,1.68603722,156.13,156.11,3.2023]
[1727687876839,1.68603722,156.13,156.1,19.74]
[1727687877131,1.68603722,156.13,156.12,3.2021]
[1727687878925,1.68603722,156.13,156.11,3.2023]
[1727687879127,1.68603722,156.13,156.1,19.74]
[1727687879531,1.68603722,156.13,156.11,3.2023]
[1727687879937,1.68603722,156.13,156.1,19.74]
[1727687881441,1.68603722,156.13,156.12,3.2021]
[1727687885738,2.95147427,156.15,156.12,22.86448731]
[1727687886036,2.95147427,156.15,156.14,3.2017]
[1727687886825,2.31861288,156.17,156.12,22.86448731]
[1727687887031,2.31861288,156.17,156.16,3.2013]
[1727687887244,2.48119343,156.18,156.15,19.74]
[1727687887434,1.43960217,156.19,156.17,19.74]
[1727687887836,1.43960217,156.19,156.18,3.2009]
[1727687888342,1.43960217,156.19,156.17,3.201]
[1727687888734,1.43960217,156.19,156.12,19.74]
[1727687888930,2.79720217,156.19,156.15,3.2015]
[1727687889235,2.79720217,156.19,156.12,19.74]
[1727687889436,2.79720217,156.19,156.14,3.2017]
[1727687889960,2.79720217,156.19,156.15,19.74]
[1727687890642,2.79720217,156.19,156.18,3.2009]
[1727687890835,1.43960217,156.19,156.18,3.2009]
[1727687891833,3.26290339,156.2,156.19,3.2007]
[1727687893439,1.57698574,156.21,156.18,19.74]
[1727687893641,1.22196762,156.22,156.21,3.2003]
[1727687893836,2.60079107,156.25,156.21,22.90491284]
[1727687894234,1.26309107,156.25,156.23,19.74]
[1727687894435,3.51369093,156.27,156.23,19.74]
[1727687894830,3.51369093,156.27,156.25,3.1995]
[1727687895937,3.51369093,156.27,156.23,19.74]
[1727687896142,3.51369093,156.27,156.24,3.1997]
[1727687896938,3.51369093,156.27,156.22,3.2]
[1727687897145,6.71279093,156.27,156.18,69.16]
[1727687897440,3.51369093,156.27,156.19,19.74]
[1727687898435,3.51369093,156.27,156.22,3.1999]
[1727687899540,3.51369093,156.27,156.21,19.74]
[1727687900036,3.51369093,156.27,156.24,19.74]
[1727687900244,3.51369093,156.27,156.25,3.1995]
[1727687900445,2.17739093,156.27,156.25,3.1995]
[1727687901336,2.17739093,156.27,156.26,3.1993]
[1727687902356,2.16604224,156.3,156.26,19.74]
[1727687902836,2.16604224,156.3,156.29,3.1987]
[1727687904251,2.16604224,156.3,156.28,3.1988]
[1727687905542,2.16604224,156.3,156.29,3.1987]
[1727687905765,2.50225545,156.31,156.29,22.9387]
[1727687905945,2.49417564,156.32,156.31,3.1982]
[1727687906143,3.61454005,156.33,156.29,19.74]
[1727687906342,5.52220015,156.34,156.32,19.74]
[1727687906541,5.52220015,156.34,156.33,3.1978]
[1727687906839,5.52220015,156.34,156.32,19.74]
[1727687907449,5.52220015,156.34,156.33,3.1978]
[1727687908348,5.52220015,156.34,156.29,19.74]
[1727687908651,5.52220015,156.34,156.29,22.95145105]
[1727687909448,5.52220015,156.34,156.3,3.1984]
[1727687910046,5.52220015,156.34,156.29,22.95145105]
[1727687910247,5.52220015,156.34,156.31,3.1981]
[1727687911150,5.52220015,156.34,156.32,3.198]
[1727687912152,5.52220015,156.34,156.29,22.95145105]
[1727687913344,5.52220015,156.34,156.31,3.1982]
[1727687913750,5.52220015,156.34,156.29,22.95145105]
[1727687913751,2.85510015,156.34,156.29,22.95145105]
[1727687914551,2.85510015,156.34,156.33,3.1978]
[1727687915744,3.50878903,156.35,156.34,3.1976]
[1727687916254,1.47254743,156.36,156.34,19.74]
[1727687916546,1.47254743,156.36,156.35,3.1974]
[1727687917055,1.47254743,156.36,156.34,22.93758154]
[1727687917056,1.35459192,156.37,156.36,3.1972]
[1727687917349,1.35459192,156.37,156.34,22.93758154]
[1727687917350,2.24158401,156.38,156.34,22.93758154]
[1727687917655,3.57115867,156.4,156.39,3.1966]
[1727687918252,3.57115867,156.4,156.39,6.32204703]
[1727687918854,1.76452235,156.41,156.4,3.1964]
[1727687919050,1.76452235,156.41,156.4,22.9364]
[1727687919649,4.57977227,156.45,156.42,3.196]
[1727687919850,4.57977227,156.45,156.4,19.74]
[1727687920351,4.57977227,156.45,156.35,0.12502]
[1727687920557,3.196,156.42,156.35,3.2823168]
[1727687920751,3.196,156.42,156.36,3.1971]
[1727687921349,3.1962,156.42,156.36,3.1971]
[1727687922058,4.57977227,156.45,156.35,0.12502]
[1727687922250,4.57977227,156.45,156.37,19.74]
[1727687922653,4.57977227,156.45,156.35,0.12502]
[1727687923154,3.1967,156.39,156.35,0.12502]
[1727687923354,21.52112746,156.44,156.35,0.12502]
[1727687923355,2.5311,156.38,156.35,0.12502]
[1727687923653,3.8478,156.38,156.31,19.74]
[1727687923862,3.1971,156.37,156.31,19.74]
[1727687924263,3.1976,156.35,156.28,3.1988]
[1727687924855,3.1976,156.35,156.26,19.74]
[1727687925054,3.1976,156.35,156.29,3.32362]
[1727687925554,3.8478,156.38,156.29,3.32362]
[1727687925758,3.1973,156.36,156.29,3.32362]
[1727687925954,3.8478,156.38,156.29,19.86502]
[1727687926253,3.1971,156.37,156.29,19.86502]
[1727687926459,3.8478,156.38,156.29,19.86502]
[1727687926657,3.8478,156.38,156.29,23.06362]
[1727687926853,3.1975,156.35,156.29,23.06362]
[1727687927160,3.8478,156.38,156.29,0.12502]
[1727687927859,0.12502,156.35,156.27,3.199]
[1727687928156,0.12502,156.35,156.24,19.74]
[1727687929957,0.12502,156.35,156.26,3.1991]
[1727687930760,3.1984,156.31,156.26,3.1991]
[1727687931062,2.5507,156.3,156.26,3.1991]
[1727687932366,2.5507,156.3,156.27,3.1989]
[1727687933155,2.5507,156.3,156.24,19.74]
[1727687933660,2.5507,156.3,156.25,3.1993]
[1727687933859,2.5507,156.3,156.24,19.74]
[1727687934058,2.5507,156.3,156.23,0.12502]
[1727687934259,2.5507,156.3,156.25,3.1994]
[1727687934957,2.5507,156.3,156.23,0.12502]
[1727687935157,2.5507,156.3,156.24,3.1996]
[1727687935356,2.5507,156.3,156.23,0.12502]
[1727687935763,3.1988,156.29,156.23,3.32482]
[1727687936265,3.199,156.28,156.23,3.32482]
[1727687936467,3.199,156.28,156.23,0.12502]
[1727687936867,2.5507,156.3,156.23,0.12502]
[1727687937068,3.1989,156.28,156.23,0.12502]
[1727687937362,2.5507,156.3,156.19,69.08]
[1727687937663,3.1994,156.26,156.19,69.08]
[1727687938366,3.1994,156.26,156.18,19.74]
[1727687939267,0.12502,156.29,156.21,3.2002]
[1727687939462,3.1991,156.27,156.21,3.2002]
[1727687940068,3.1989,156.28,156.22,3.1999]
[1727687940263,0.12502,156.29,156.18,19.74]
[1727687940464,0.12502,156.29,156.24,3.1995]
[1727687940669,0.12502,156.29,156.21,19.74]
[1727687940967,0.12502,156.29,156.26,3.1991]
[1727687941162,0.12502,156.29,156.24,19.74]
[1727687942169,0.12502,156.29,156.28,3.1989]
[1727687943160,0.12502,156.29,156.27,3.199]
[1727687944069,0.12502,156.29,156.28,3.1989]
[1727687946568,0.12502,156.29,156.26,3.1991]
[1727687946762,0.12502,156.29,156.25,3.16404608]
[1727687946967,0.12502,156.29,156.24,19.74]
[1727687946968,0.12502,156.29,156.26,3.1991]
[1727687947164,0.12502,156.29,156.24,19.74]
[1727687947872,0.12502,156.29,156.21,19.74]
[1727687948171,0.12502,156.29,156.24,3.1996]
[1727687949476,0.12502,156.29,156.18,19.74]
[1727687950377,3.1992,156.27,156.22,3.1999]
[1727687950768,2.6101,156.28,156.21,19.74]
[1727687950978,2.6101,156.28,156.23,19.74]
[1727687951173,0.12502,156.29,156.26,19.74]
[1727687951367,0.12502,156.29,156.28,3.1989]
[1727687951993,0.12502,156.29,156.26,19.74]
[1727687952167,0.12502,156.29,156.25,3.20326478]
[1727687952467,0.12502,156.29,156.2,19.74]
[1727687952669,0.12502,156.29,156.23,3.1997]
[1727687952869,0.12502,156.29,156.2,19.74]
[1727687953075,3.199,156.28,156.2,19.74]
[1727687953275,3.199,156.28,156.22,3.2]
[1727687953276,1.3268,156.27,156.22,3.2]
[1727687954779,4.5259,156.27,156.21,3.2002]
[1727687955176,1.3268,156.27,156.18,19.74]
[1727687955384,1.3268,156.27,156.23,3.1998]
[1727687955886,1.3268,156.27,156.2,19.74]
[1727687956386,1.3017,156.28,156.23,19.74]
[1727687956585,0.12502,156.29,156.23,19.74]
[1727687956987,0.12502,156.29,156.27,3.199]
[1727687957186,0.12502,156.29,156.23,19.74]
[1727687957387,0.12502,156.29,156.25,19.74]
[1727687957693,0.12502,156.29,156.28,3.1989]
[1727687959879,0.12502,156.29,156.28,22.9389]
[1727687960483,0.12502,156.35,156.28,19.74]
[1727687960685,0.12502,156.35,156.3,19.74]
[1727687961183,0.12502,156.35,156.34,3.1976]
[1727687961986,1.2641,156.4,156.36,3.197]
[1727687962784,1.2641,156.4,156.35,3.1974]
[1727687963186,4.4605,156.4,156.32,3.19976957]
[1727687963390,4.4605,156.4,156.34,3.1975]
[1727687963590,1.2641,156.4,156.33,3.19845179]
[1727687963783,1.2641,156.4,156.3,19.74]
[1727687964184,1.2641,156.4,156.34,3.1975]
[1727687964384,1.2641,156.4,156.3,19.74]
[1727687964385,1.2641,156.4,156.3,22.8613691]
[1727687964991,1.2641,156.4,156.35,3.1973]
[1727687966382,4.4605,156.4,156.35,3.1973]
[1727687966589,1.2641,156.4,156.37,3.1969]
[1727687968286,1.2641,156.4,156.3,3.1213691]
[1727687968287,1.2641,156.4,156.35,3.1974]
[1727687968488,1.2641,156.4,156.3,19.74]
[1727687968688,1.2641,156.4,156.33,19.74]
[1727687968893,1.2641,156.4,156.37,3.1969]
[1727687969084,0.12502,156.41,156.33,19.74]
[1727687969492,0.12502,156.41,156.38,3.1967]
[1727687969894,0.12502,156.41,156.33,19.74]
[1727687970194,0.12502,156.41,156.36,19.74]
[1727687970593,0.12502,156.41,156.37,3.1969]
[1727687970786,0.12502,156.41,156.36,19.74]
[1727687971092,0.12502,156.41,156.4,3.1964]
[1727687971493,0.12502,156.41,156.36,19.74]
[1727687971693,0.12502,156.41,156.38,3.1967]
[1727687973790,0.12502,156.41,156.33,19.74]
[1727687974497,3.32132,156.41,156.35,3.1974]
[1727687976495,0.12502,156.41,156.32,69.08]
[1727687976699,1.54322,156.41,156.34,3.1975]
[1727687977300,3.1967,156.39,156.34,3.1975]
[1727687977691,3.1967,156.39,156.35,3.1974]
[1727687978400,3.1965,156.4,156.35,3.1974]
[1727687978601,3.1965,156.4,156.3,20.2164]
[1727687978804,3.1974,156.36,156.31,3.1981]
[1727687979195,3.1974,156.36,156.3,3.27862284]
[1727687979606,3.1974,156.36,156.31,3.1982]
[1727687980115,3.1974,156.35,156.29,0.12502]
[1727687980306,12.29,156.36,156.29,0.12502]
[1727687980506,1.4044,156.35,156.29,0.12502]
[1727687981011,1.4044,156.35,156.3,3.1983]
[1727687981215,4.602,156.35,156.3,3.1983]
[1727687981403,1.4044,156.35,156.3,3.1983]
[1727687981807,4.6019,156.35,156.3,3.1983]
[1727687982010,4.6019,156.35,156.29,0.12502]
[1727687982239,4.6018,156.35,156.31,3.1981]
[1727687982608,1.4044,156.35,156.29,0.12502]
[1727687982808,1.4044,156.35,156.32,3.1979]
[1727687983114,1.4044,156.35,156.29,12.41502]
[1727687983313,1.458,156.39,156.29,12.41502]
[1727687983509,2.9154,156.39,156.29,12.41502]
[1727687983907,3.1971,156.37,156.33,3.1978]
[1727687985722,2.9154,156.39,156.32,12.29]
[1727687985912,3.1969,156.38,156.32,12.29]
[1727687986113,2.9154,156.39,156.3,12.29]
[1727687986314,3.1974,156.36,156.32,3.1978]
[1727687986613,3.1974,156.36,156.29,0.12502]
[1727687988324,3.1975,156.35,156.31,3.1982]
[1727687988815,12.29,156.38,156.31,3.1982]
[1727687989119,12.29,156.38,156.29,0.12502]
[1727687989718,3.1977,156.34,156.3,3.1984]
[1727687990114,3.1981,156.32,156.29,0.12502]
[1727687990719,3.1979,156.33,156.29,3.32362]
[1727687990915,1.4199,156.35,156.29,0.12502]
[1727687992016,3.1978,156.34,156.3,3.1984]
[1727687992318,1.4199,156.35,156.29,0.12502]
[1727687992515,4.6174,156.35,156.3,3.1983]
[1727687992710,1.4199,156.35,156.29,0.12502]
[1727687994024,3.1976,156.34,156.31,3.1981]
[1727687996124,4.6175,156.35,156.31,3.1981]
[1727687997223,4.6175,156.35,156.32,3.198]
[1727687998127,1.4199,156.35,156.29,0.12502]
[1727687998325,1.4199,156.35,156.33,3.1977]
[1727687999124,15.2054,156.39,156.29,0.12502]
[1727687999429,2.9154,156.39,156.3,12.29]
[1727687999631,3.1969,156.38,156.3,12.29]
[1727687999831,2.9154,156.39,156.3,12.29]
[1727688000018,2.9154,156.39,156.32,12.29]
[1727688000425,6.1121,156.39,156.35,3.1973]
[1727688001326,3.1968,156.38,156.3,12.29]
[1727688001632,2.9154,156.39,156.34,3.1976]
[1727688003129,2.9154,156.39,156.33,3.1978]
[1727688003428,2.9154,156.39,156.29,0.12502]
[1727688003632,1.458,156.39,156.29,0.12502]
[1727688003932,1.4895,156.38,156.29,0.12502]
[1727688004939,3.1971,156.37,156.29,0.12502]
[1727688005138,3.1971,156.37,156.31,12.29]
[1727688005435,4.6864,156.38,156.34,3.1975]
[1727688005640,4.6864,156.38,156.31,12.29]
[1727688006032,4.6864,156.38,156.34,3.1975]
[1727688007033,1.4895,156.38,156.35,3.1973]
[1727688007834,1.4895,156.38,156.36,3.1972]
[1727688008039,1.4895,156.38,156.31,12.29]
[1727688009032,1.4895,156.38,156.33,12.29]
[1727688009532,4.6863,156.38,156.34,3.1976]
[1727688010029,1.4895,156.38,156.31,12.29]
[1727688010335,12.29,156.36,156.29,0.12502]
[1727688010931,12.29,156.34,156.29,0.12502]
[1727688011140,3.1984,156.3,156.29,0.12502]
[1727688011937,1.5548,156.32,156.29,0.12502]
[1727688012538,15.3943,156.32,156.29,0.12502]
[1727688012737,3.1987,156.29,156.22,12.29]
[1727688013341,3.1987,156.29,156.25,3.1993]
[1727688014245,3.1992,156.27,156.23,3.32482]
[1727688014735,3.1993,156.26,156.23,0.12502]
[1727688015642,12.29,156.3,156.23,0.12502]
[1727688015839,3.1991,156.27,156.23,0.12502]
[1727688017347,3.1986,156.3,156.23,0.12502]
[1727688017649,3.1043,156.32,156.23,0.12502]
[1727688019155,3.1987,156.29,156.23,0.12502]
[1727688019654,3.1043,156.32,156.23,0.12502]
[1727688019838,3.1043,156.32,156.24,12.29]
[1727688020041,3.1043,156.32,156.25,3.25138726]
[1727688020352,3.1043,156.32,156.28,3.1987]
[1727688020851,1.5548,156.32,156.25,3.25138726]
[1727688021046,1.5548,156.32,156.27,12.29]